[Event "Live Chess"]
[Site "Chess.com"]
[Date "2023.05.20"]
[Round "-"]
[White "KuriyamaMiraiUA"]
[Black "Misha145Chess"]
[Result "1/2-1/2"]
[WhiteElo "567"]
[BlackElo "570"]
[TimeControl "300"]
[EndTime "9:13:06 PDT"]
[Termination "Game drawn - insufficient material"]

1. d4 {[%clk 0:04:58]} 1... d5 {[%clk 0:04:56.9]} 2. c4 {[%clk 0:04:57.1]} 2...
e5 {[%clk 0:04:48.3]} 3. dxe5 {[%clk 0:04:53.2]} 3... Nc6 {[%clk 0:04:37.9]} 4.
Nf3 {[%clk 0:04:51.8]} 4... f6 {[%clk 0:04:31.3]} 5. exf6 {[%clk 0:04:49.3]}
5... Nxf6 {[%clk 0:04:27.6]} 6. Nc3 {[%clk 0:04:48.1]} 6... dxc4 {[%clk
0:04:22.2]} 7. e4 {[%clk 0:04:45.7]} 7... Bb4 {[%clk 0:04:11.7]} 8. Qxd8+ {[%clk
0:04:42.1]} 8... Nxd8 {[%clk 0:04:11.6]} 9. Bd2 {[%clk 0:04:38.4]} 9... Nc6
{[%clk 0:04:08.8]} 10. Bxc4 {[%clk 0:04:31.2]} 10... Bg4 {[%clk 0:03:47.7]} 11.
O-O-O {[%clk 0:04:26.2]} 11... O-O-O {[%clk 0:03:43.1]} 12. Bf4 {[%clk 0:04:16]}
12... Rxd1+ {[%clk 0:03:35.5]} 13. Rxd1 {[%clk 0:04:14.9]} 13... Rd8 {[%clk
0:03:32]} 14. a3 {[%clk 0:03:57.8]} 14... Rxd1+ {[%clk 0:03:28.6]} 15. Nxd1
{[%clk 0:03:55.6]} 15... Bd6 {[%clk 0:03:23.6]} 16. Bxd6 {[%clk 0:03:51.5]}
16... cxd6 {[%clk 0:03:22.7]} 17. Ne3 {[%clk 0:03:45.1]} 17... h5 {[%clk
0:03:15.1]} 18. Nxg4 {[%clk 0:03:40.4]} 18... hxg4 {[%clk 0:03:15]} 19. Ng5
{[%clk 0:03:33.9]} 19... Kd7 {[%clk 0:03:07]} 20. Be6+ {[%clk 0:03:31.6]} 20...
Ke7 {[%clk 0:03:03.8]} 21. h3 {[%clk 0:03:22.4]} 21... gxh3 {[%clk 0:02:59.9]}
22. Bxh3 {[%clk 0:03:17.9]} 22... Ne5 {[%clk 0:02:49.6]} 23. f4 {[%clk 0:03:14]}
23... Neg4 {[%clk 0:02:44.2]} 24. Bxg4 {[%clk 0:03:10.1]} 24... Nxg4 {[%clk
0:02:44.1]} 25. Kd2 {[%clk 0:03:02.8]} 25... Nf2 {[%clk 0:02:41.7]} 26. Ke3
{[%clk 0:02:48]} 26... Ng4+ {[%clk 0:02:40]} 27. Kf3 {[%clk 0:02:45.1]} 27...
Nf6 {[%clk 0:02:38.8]} 28. e5 {[%clk 0:02:43.8]} 28... dxe5 {[%clk 0:02:37.6]}
29. fxe5 {[%clk 0:02:43.2]} 29... Nd5 {[%clk 0:02:34.4]} 30. g4 {[%clk 0:02:36]}
30... b5 {[%clk 0:02:25.4]} 31. b4 {[%clk 0:02:34.2]} 31... Kd7 {[%clk
0:02:11.9]} 32. e6+ {[%clk 0:02:31.4]} 32... Ke7 {[%clk 0:02:09.7]} 33. Ke4
{[%clk 0:02:30.4]} 33... Nf6+ {[%clk 0:02:07.2]} 34. Kf5 {[%clk 0:02:28.2]}
34... Kd6 {[%clk 0:01:56.5]} 35. Nf7+ {[%clk 0:02:22]} 35... Ke7 {[%clk
0:01:52.6]} 36. g5 {[%clk 0:02:19.6]} 36... Nd5 {[%clk 0:01:42.9]} 37. g6 {[%clk
0:02:05.5]} 37... Ne3+ {[%clk 0:01:37.4]} 38. Ke5 {[%clk 0:02:01.7]} 38... Ng4+
{[%clk 0:01:36.3]} 39. Kf5 {[%clk 0:02:00.8]} 39... Ne3+ {[%clk 0:01:34.8]} 40.
Kg5 {[%clk 0:01:59.7]} 40... Kxe6 {[%clk 0:01:31.8]} 41. Nd8+ {[%clk 0:01:54.7]}
41... Ke7 {[%clk 0:01:28.8]} 42. Nc6+ {[%clk 0:01:53.1]} 42... Kd7 {[%clk
0:01:25.5]} 43. Nxa7 {[%clk 0:01:52.2]} 43... Nc4 {[%clk 0:01:24.3]} 44. Nxb5
{[%clk 0:01:50.9]} 44... Kc6 {[%clk 0:01:21.3]} 45. Nd4+ {[%clk 0:01:44.5]}
45... Kd5 {[%clk 0:01:18.1]} 46. Nf5 {[%clk 0:01:42.7]} 46... Nxa3 {[%clk
0:01:14.2]} 47. Nxg7 {[%clk 0:01:42]} 47... Nc4 {[%clk 0:01:12.7]} 48. Kf6
{[%clk 0:01:36.2]} 48... Nd6 {[%clk 0:01:11.2]} 49. Nh5 {[%clk 0:01:26.8]} 49...
Ne8+ {[%clk 0:01:09.4]} 50. Kf7 {[%clk 0:01:26.1]} 50... Nd6+ {[%clk 0:01:08.1]}
51. Ke7 {[%clk 0:01:24]} 51... Nc8+ {[%clk 0:01:07.1]} 52. Kf6 {[%clk 0:01:22]}
52... Nd6 {[%clk 0:01:05.3]} 53. g7 {[%clk 0:01:21.3]} 53... Ne8+ {[%clk
0:01:04.3]} 54. Kf7 {[%clk 0:01:19.6]} 54... Nxg7 {[%clk 0:01:01.6]} 55. Kxg7
{[%clk 0:01:18.5]} 55... Kc4 {[%clk 0:01:00.6]} 56. Nf6 {[%clk 0:01:15.8]} 56...
Kxb4 {[%clk 0:00:59.8]} 1/2-1/2

[Event "Live Chess"]
[Site "Chess.com"]
[Date "2023.05.20"]
[Round "-"]
[White "Fayn02"]
[Black "ClassyChameleon"]
[Result "0-1"]
[WhiteElo "1022"]
[BlackElo "1039"]
[TimeControl "300"]
[EndTime "9:13:09 PDT"]
[Termination "ClassyChameleon won by resignation"]

1. d4 {[%clk 0:04:54.1]} 1... d5 {[%clk 0:04:57.5]} 2. Bf4 {[%clk 0:04:53.1]}
2... Nf6 {[%clk 0:04:54.6]} 3. Nf3 {[%clk 0:04:38.2]} 3... Nc6 {[%clk 0:04:51]}
4. e3 {[%clk 0:04:34.1]} 4... Bf5 {[%clk 0:04:43.1]} 5. c3 {[%clk 0:04:30.8]}
5... e6 {[%clk 0:04:34.1]} 6. Be2 {[%clk 0:04:23.7]} 6... Bd6 {[%clk 0:04:17.2]}
7. Bxd6 {[%clk 0:04:21.9]} 7... Qxd6 {[%clk 0:04:16.4]} 8. Nbd2 {[%clk
0:04:18.1]} 8... Ng4 {[%clk 0:04:12.1]} 9. h3 {[%clk 0:04:07.7]} 9... Nh6 {[%clk
0:03:52.2]} 10. Nb3 {[%clk 0:04:04.2]} 10... f6 {[%clk 0:03:42.8]} 11. Nc5
{[%clk 0:04:00.3]} 11... Na5 {[%clk 0:03:21.7]} 12. b4 {[%clk 0:03:54.3]} 12...
b6 {[%clk 0:03:16.6]} 13. Nb3 {[%clk 0:03:43.9]} 13... Nxb3 {[%clk 0:03:15.2]}
14. Qxb3 {[%clk 0:03:43.8]} 14... O-O {[%clk 0:03:13.6]} 15. a4 {[%clk
0:03:36.3]} 15... g5 {[%clk 0:03:11.2]} 16. Qd1 {[%clk 0:03:27.9]} 16... g4
{[%clk 0:03:00.3]} 17. hxg4 {[%clk 0:03:23.6]} 17... Nxg4 {[%clk 0:02:59.4]} 18.
Bd3 {[%clk 0:03:11.2]} 18... Rae8 {[%clk 0:02:35.6]} 19. Bxf5 {[%clk 0:03:04.8]}
19... exf5 {[%clk 0:02:33.6]} 20. Qd3 {[%clk 0:03:03.4]} 20... Rf7 {[%clk
0:02:23.6]} 21. Qxf5 {[%clk 0:03:00.1]} 21... Ne5 {[%clk 0:02:11.9]} 22. Nxe5
{[%clk 0:02:58.2]} 22... fxe5 {[%clk 0:02:09.5]} 23. Qg4+ {[%clk 0:02:54.7]}
23... Rg7 {[%clk 0:02:07.6]} 24. Qh3 {[%clk 0:02:36.4]} 24... exd4 {[%clk
0:01:59.8]} 25. cxd4 {[%clk 0:02:34]} 25... Qxb4+ {[%clk 0:01:57.9]} 26. Ke2
{[%clk 0:02:33.4]} 26... Qxd4 {[%clk 0:01:55.4]} 27. Rhd1 {[%clk 0:02:24.5]}
27... Qg4+ {[%clk 0:01:37]} 28. Qxg4 {[%clk 0:02:22.3]} 28... Rxg4 {[%clk
0:01:36.4]} 29. Rxd5 {[%clk 0:02:21.3]} 29... Rxg2 {[%clk 0:01:35.3]} 30. Rd7
{[%clk 0:02:18.1]} 30... Rc8 {[%clk 0:01:32.5]} 31. Rc1 {[%clk 0:02:16.8]} 31...
Rg7 {[%clk 0:01:31.2]} 32. Rxg7+ {[%clk 0:02:14.8]} 32... Kxg7 {[%clk
0:01:30.4]} 33. Rc6 {[%clk 0:02:11.4]} 33... h5 {[%clk 0:01:26.3]} 34. f4 {[%clk
0:02:09]} 34... h4 {[%clk 0:01:24.9]} 35. Kf3 {[%clk 0:02:08.1]} 35... Rh8
{[%clk 0:01:20]} 36. Rxc7+ {[%clk 0:02:06.6]} 36... Kg6 {[%clk 0:01:18.9]} 37.
Rc1 {[%clk 0:01:54.9]} 37... h3 {[%clk 0:01:16.9]} 38. Rh1 {[%clk 0:01:53.4]}
38... h2 {[%clk 0:01:13.2]} 39. Kg2 {[%clk 0:01:52.1]} 39... Kf5 {[%clk
0:01:11.8]} 40. Kf3 {[%clk 0:01:43.8]} 40... Rh3+ {[%clk 0:01:06.3]} 41. Kf2
{[%clk 0:01:41.4]} 41... Kg4 {[%clk 0:01:05.4]} 42. Ke2 {[%clk 0:01:36.2]} 42...
Kg3 {[%clk 0:01:00.9]} 43. Kf1 {[%clk 0:01:35.1]} 43... Kf3 {[%clk 0:00:58.1]}
44. f5 {[%clk 0:01:27.6]} 44... Kxe3 {[%clk 0:00:56.5]} 45. f6 {[%clk
0:01:27.1]} 45... Rf3+ {[%clk 0:00:55.5]} 46. Kg2 {[%clk 0:01:26.3]} 46... Rxf6
{[%clk 0:00:53.6]} 47. Rxh2 {[%clk 0:01:25.9]} 47... Rf2+ {[%clk 0:00:52.3]} 48.
Kg3 {[%clk 0:01:24.6]} 48... Rxh2 {[%clk 0:00:51.7]} 49. Kxh2 {[%clk 0:01:24.5]}
49... Kd3 {[%clk 0:00:51.3]} 50. Kg3 {[%clk 0:01:24.2]} 50... Kc4 {[%clk
0:00:51]} 51. Kf4 {[%clk 0:01:24.1]} 51... Kb4 {[%clk 0:00:50.6]} 52. Ke5 {[%clk
0:01:24]} 52... Kxa4 {[%clk 0:00:50.3]} 53. Kd6 {[%clk 0:01:23.7]} 53... Ka5
{[%clk 0:00:50]} 54. Kc6 {[%clk 0:01:23]} 54... b5 {[%clk 0:00:49.6]} 55. Kb7
{[%clk 0:01:22.2]} 55... a6 {[%clk 0:00:48.9]} 56. Kc6 {[%clk 0:01:21.4]} 56...
b4 {[%clk 0:00:48.6]} 57. Kc5 {[%clk 0:01:21.3]} 57... Ka4 {[%clk 0:00:47.5]}
0-1

[Event "Live Chess"]
[Site "Chess.com"]
[Date "2023.05.20"]
[Round "-"]
[White "Vedant-1411"]
[Black "LodeshChess"]
[Result "0-1"]
[WhiteElo "778"]
[BlackElo "874"]
[TimeControl "300"]
[EndTime "9:13:09 PDT"]
[Termination "LodeshChess won by checkmate"]

1. d4 {[%clk 0:04:56]} 1... Nf6 {[%clk 0:04:58.7]} 2. Nf3 {[%clk 0:04:54.3]}
2... c5 {[%clk 0:04:57.3]} 3. dxc5 {[%clk 0:04:51.5]} 3... Na6 {[%clk
0:04:53.6]} 4. Nc3 {[%clk 0:04:50.3]} 4... e6 {[%clk 0:04:50.3]} 5. Bf4 {[%clk
0:04:49]} 5... Bxc5 {[%clk 0:04:48.3]} 6. Nb5 {[%clk 0:04:47.4]} 6... O-O {[%clk
0:04:41.3]} 7. Nc7 {[%clk 0:04:45.5]} 7... Nxc7 {[%clk 0:04:39.8]} 8. Bxc7
{[%clk 0:04:43.8]} 8... Qxc7 {[%clk 0:04:38.9]} 9. e3 {[%clk 0:04:41.5]} 9... d5
{[%clk 0:04:35.5]} 10. Bd3 {[%clk 0:04:35.5]} 10... Qa5+ {[%clk 0:04:28.4]} 11.
c3 {[%clk 0:04:31.9]} 11... a6 {[%clk 0:04:23]} 12. b4 {[%clk 0:04:30.5]} 12...
Qc7 {[%clk 0:04:14.4]} 13. bxc5 {[%clk 0:04:28.7]} 13... Qxc5 {[%clk 0:04:14.1]}
14. Qc1 {[%clk 0:04:13.9]} 14... e5 {[%clk 0:04:13]} 15. O-O {[%clk 0:04:12.3]}
15... e4 {[%clk 0:04:12.1]} 16. Be2 {[%clk 0:04:10.6]} 16... exf3 {[%clk
0:04:11.1]} 17. Bxf3 {[%clk 0:04:09.6]} 17... Bg4 {[%clk 0:04:06.8]} 18. Bxg4
{[%clk 0:04:05.7]} 18... Nxg4 {[%clk 0:04:05.5]} 19. Qd1 {[%clk 0:04:05.2]}
19... Qd6 {[%clk 0:03:59.9]} 20. Qxg4 {[%clk 0:04:00.8]} 20... b5 {[%clk
0:03:53.8]} 21. Qh3 {[%clk 0:03:52.3]} 21... Rac8 {[%clk 0:03:44.6]} 22. Qf3
{[%clk 0:03:48.9]} 22... Rxc3 {[%clk 0:03:38.7]} 23. Rac1 {[%clk 0:03:45.7]}
23... Rfc8 {[%clk 0:03:36.8]} 24. Rxc3 {[%clk 0:03:43.8]} 24... Rxc3 {[%clk
0:03:36.4]} 25. Qh3 {[%clk 0:03:31.1]} 25... Qc7 {[%clk 0:03:25.5]} 26. Qg4
{[%clk 0:03:22.6]} 26... Rc1 {[%clk 0:03:21.5]} 27. Qe2 {[%clk 0:03:16.4]} 27...
Rxf1+ {[%clk 0:03:15.4]} 28. Qxf1 {[%clk 0:03:15.2]} 28... Qc2 {[%clk 0:03:15]}
29. Qa1 {[%clk 0:03:09.2]} 29... Kf8 {[%clk 0:03:05.6]} 30. a3 {[%clk
0:02:59.2]} 30... a5 {[%clk 0:02:56.9]} 31. h3 {[%clk 0:02:57.3]} 31... Ke7
{[%clk 0:02:56.1]} 32. Qxg7 {[%clk 0:02:48.3]} 32... Qc1+ {[%clk 0:02:35.6]} 33.
Kh2 {[%clk 0:02:45.2]} 33... Qxa3 {[%clk 0:02:35.2]} 34. Qxh7 {[%clk 0:02:44.3]}
34... Qd6+ {[%clk 0:02:30.2]} 35. Kg1 {[%clk 0:02:35.3]} 35... a4 {[%clk
0:02:29.2]} 36. Qb1 {[%clk 0:02:29.8]} 36... Qc5 {[%clk 0:02:19.9]} 37. Qb2
{[%clk 0:02:19.2]} 37... b4 {[%clk 0:02:12]} 38. h4 {[%clk 0:02:09]} 38... a3
{[%clk 0:02:10.8]} 39. Qb3 {[%clk 0:02:08]} 39... Qc4 {[%clk 0:01:54.5]} 40. Qa4
{[%clk 0:01:50.2]} 40... a2 {[%clk 0:01:50]} 41. Qa7+ {[%clk 0:01:45.6]} 41...
Kf6 {[%clk 0:01:23.2]} 42. h5 {[%clk 0:01:34.9]} 42... Qc1+ {[%clk 0:01:16.8]}
43. Kh2 {[%clk 0:01:32.9]} 43... a1=Q {[%clk 0:01:15.8]} 44. Qxa1+ {[%clk
0:01:30.1]} 44... Qxa1 {[%clk 0:01:13.5]} 45. h6 {[%clk 0:01:30]} 45... Kg6
{[%clk 0:01:11.8]} 46. h7 {[%clk 0:01:27.9]} 46... Kxh7 {[%clk 0:01:11]} 47. g4
{[%clk 0:01:27.8]} 47... Qb2 {[%clk 0:01:06.3]} 48. g5 {[%clk 0:01:26.8]} 48...
Qxf2+ {[%clk 0:01:05.5]} 49. Kh3 {[%clk 0:01:24.8]} 49... Qg1 {[%clk 0:00:59.7]}
50. Kh4 {[%clk 0:01:24.3]} 50... Kg6 {[%clk 0:00:55.7]} 51. e4 {[%clk
0:01:20.5]} 51... dxe4 {[%clk 0:00:51.2]} 52. Kh3 {[%clk 0:01:19.6]} 52... Kf5
{[%clk 0:00:50.7]} 53. g6 {[%clk 0:01:16.8]} 53... fxg6 {[%clk 0:00:48.4]} 54.
Kh4 {[%clk 0:01:15.9]} 54... Qg4# {[%clk 0:00:48]} 0-1

[Event "Live Chess"]
[Site "Chess.com"]
[Date "2023.05.20"]
[Round "-"]
[White "omisoc"]
[Black "OSmith06"]
[Result "0-1"]
[WhiteElo "2087"]
[BlackElo "1733"]
[TimeControl "300"]
[EndTime "9:13:12 PDT"]
[Termination "OSmith06 won by resignation"]

1. b3 {[%clk 0:04:53.9]} 1... Nf6 {[%clk 0:04:58.6]} 2. Bb2 {[%clk 0:04:51.9]}
2... e6 {[%clk 0:04:57.3]} 3. e3 {[%clk 0:04:51.1]} 3... d5 {[%clk 0:04:56.2]}
4. Nf3 {[%clk 0:04:47.6]} 4... c5 {[%clk 0:04:52.5]} 5. c4 {[%clk 0:04:46]} 5...
Nc6 {[%clk 0:04:50.5]} 6. Nc3 {[%clk 0:04:42.2]} 6... Be7 {[%clk 0:04:44.9]} 7.
g3 {[%clk 0:04:40.9]} 7... O-O {[%clk 0:04:43.9]} 8. Bg2 {[%clk 0:04:39.7]} 8...
a6 {[%clk 0:04:41.7]} 9. O-O {[%clk 0:04:38.3]} 9... dxc4 {[%clk 0:04:35.8]} 10.
bxc4 {[%clk 0:04:36.5]} 10... Bd7 {[%clk 0:04:31.9]} 11. Qe2 {[%clk 0:04:34]}
11... Bd6 {[%clk 0:04:23.6]} 12. Rad1 {[%clk 0:04:24.1]} 12... Qc7 {[%clk
0:04:20.2]} 13. Ng5 {[%clk 0:04:21.2]} 13... h6 {[%clk 0:04:15.8]} 14. Nge4
{[%clk 0:04:19.4]} 14... Nxe4 {[%clk 0:04:13]} 15. Nxe4 {[%clk 0:04:17.4]} 15...
Be5 {[%clk 0:04:06.8]} 16. Bxe5 {[%clk 0:04:15.2]} 16... Qxe5 {[%clk 0:04:05.6]}
17. f4 {[%clk 0:04:14]} 17... Qc7 {[%clk 0:03:47.3]} 18. Nxc5 {[%clk 0:04:12.7]}
18... Rfd8 {[%clk 0:03:41.8]} 19. Rb1 {[%clk 0:04:05.6]} 19... b6 {[%clk
0:03:36.7]} 20. Nxd7 {[%clk 0:04:04]} 20... Rxd7 {[%clk 0:03:36.1]} 21. d4
{[%clk 0:04:01.1]} 21... Rad8 {[%clk 0:03:34]} 22. Rfc1 {[%clk 0:03:53.1]} 22...
Ne7 {[%clk 0:03:14.3]} 23. c5 {[%clk 0:03:48.4]} 23... b5 {[%clk 0:03:07.6]} 24.
a4 {[%clk 0:03:46.3]} 24... bxa4 {[%clk 0:03:03.1]} 25. Rb6 {[%clk 0:03:35.7]}
25... Nd5 {[%clk 0:02:55.3]} 26. Bxd5 {[%clk 0:03:32.2]} 26... exd5 {[%clk
0:02:48.6]} 27. Qxa6 {[%clk 0:03:29.3]} 27... Re7 {[%clk 0:02:38]} 28. Kf2
{[%clk 0:03:20]} 28... Rde8 {[%clk 0:02:33.3]} 29. Rc3 {[%clk 0:03:18.6]} 29...
Qd7 {[%clk 0:02:25]} 30. Qf1 {[%clk 0:03:02.9]} 30... Kh7 {[%clk 0:02:01.6]} 31.
Rd6 {[%clk 0:02:58.5]} 31... Qa7 {[%clk 0:01:56.3]} 32. Rxd5 {[%clk 0:02:51.8]}
32... a3 {[%clk 0:01:54.9]} 33. Qa1 {[%clk 0:02:46.3]} 33... a2 {[%clk
0:01:52.1]} 34. Rc2 {[%clk 0:02:42.8]} 34... Rxe3 {[%clk 0:01:48.3]} 35. Qxa2
{[%clk 0:02:42.1]} 35... Qb7 {[%clk 0:01:43.6]} 36. Re5 {[%clk 0:02:39.9]} 36...
Qf3+ {[%clk 0:01:39.9]} 37. Kg1 {[%clk 0:02:36.2]} 37... Re1+ {[%clk 0:01:36.5]}
0-1

[Event "Live Chess"]
[Site "Chess.com"]
[Date "2023.05.20"]
[Round "-"]
[White "MaximKris"]
[Black "Fazer180"]
[Result "1-0"]
[WhiteElo "1794"]
[BlackElo "1731"]
[TimeControl "300"]
[EndTime "9:13:19 PDT"]
[Termination "MaximKris won on time"]

1. e4 {[%clk 0:04:54.2]} 1... e6 {[%clk 0:04:38.5]} 2. d4 {[%clk 0:04:52.4]}
2... d5 {[%clk 0:04:37.2]} 3. exd5 {[%clk 0:04:52.3]} 3... exd5 {[%clk
0:04:35.8]} 4. Nf3 {[%clk 0:04:52.2]} 4... Nf6 {[%clk 0:04:34.5]} 5. Bd3 {[%clk
0:04:51.5]} 5... Be6 {[%clk 0:04:33.8]} 6. O-O {[%clk 0:04:51.4]} 6... Bd6
{[%clk 0:04:32.8]} 7. Re1 {[%clk 0:04:51.3]} 7... O-O {[%clk 0:04:31.9]} 8. Bg5
{[%clk 0:04:50.9]} 8... h6 {[%clk 0:04:30.6]} 9. Bh4 {[%clk 0:04:50.2]} 9... Nc6
{[%clk 0:04:25.9]} 10. Ne5 {[%clk 0:04:48.7]} 10... Be7 {[%clk 0:04:11.9]} 11.
Nxc6 {[%clk 0:04:46.9]} 11... bxc6 {[%clk 0:04:10.6]} 12. Nc3 {[%clk 0:04:44.5]}
12... Rb8 {[%clk 0:04:07.8]} 13. b3 {[%clk 0:04:38.7]} 13... Bb4 {[%clk
0:03:59.9]} 14. Qd2 {[%clk 0:04:32]} 14... c5 {[%clk 0:03:56.2]} 15. a3 {[%clk
0:04:28.9]} 15... Bxc3 {[%clk 0:03:32.2]} 16. Qxc3 {[%clk 0:04:25.9]} 16... g5
{[%clk 0:03:27.8]} 17. Bg3 {[%clk 0:04:23.6]} 17... Rb7 {[%clk 0:03:01]} 18.
Qxc5 {[%clk 0:04:12]} 18... Nd7 {[%clk 0:02:54.1]} 19. Qc3 {[%clk 0:04:03.9]}
19... Qf6 {[%clk 0:02:48.6]} 20. Be5 {[%clk 0:03:56.9]} 20... Nxe5 {[%clk
0:02:40.7]} 21. Rxe5 {[%clk 0:03:56.8]} 21... Rc8 {[%clk 0:02:20.5]} 22. Rae1
{[%clk 0:03:53.4]} 22... c5 {[%clk 0:02:19.4]} 23. R1e3 {[%clk 0:03:41.5]} 23...
cxd4 {[%clk 0:02:15]} 24. Qxd4 {[%clk 0:03:40.1]} 24... Rbc7 {[%clk 0:02:09.3]}
25. Rxd5 {[%clk 0:03:34]} 25... Qe7 {[%clk 0:01:41.9]} 26. Rde5 {[%clk
0:03:27.9]} 26... Qxa3 {[%clk 0:01:39.8]} 27. h3 {[%clk 0:03:26.1]} 27... Qc1+
{[%clk 0:01:38.3]} 28. Kh2 {[%clk 0:03:24.7]} 28... Rd7 {[%clk 0:01:35]} 29. Qe4
{[%clk 0:03:21.6]} 29... f5 {[%clk 0:01:29]} 30. Qf3 {[%clk 0:03:14.6]} 30... f4
{[%clk 0:01:20.9]} 31. Re2 {[%clk 0:03:08.7]} 31... Bf7 {[%clk 0:01:11.5]} 32.
Bf5 {[%clk 0:02:58.6]} 32... Rcd8 {[%clk 0:00:49.8]} 33. Bxd7 {[%clk 0:02:53.6]}
33... Rxd7 {[%clk 0:00:49.7]} 34. Qa8+ {[%clk 0:02:51.1]} 34... Kg7 {[%clk
0:00:48.5]} 35. Re7 {[%clk 0:02:49.1]} 35... Rxe7 {[%clk 0:00:44.9]} 36. Rxe7
{[%clk 0:02:49]} 36... Qxc2 {[%clk 0:00:44.5]} 37. Qe4 {[%clk 0:02:44.6]} 37...
Qxe4 {[%clk 0:00:41.2]} 38. Rxe4 {[%clk 0:02:44.5]} 38... Bxb3 {[%clk
0:00:40.4]} 39. Re7+ {[%clk 0:02:44.1]} 39... Kf6 {[%clk 0:00:38.5]} 40. Rxa7
{[%clk 0:02:44]} 40... Bd5 {[%clk 0:00:36.7]} 41. g3 {[%clk 0:02:43.7]} 41...
fxg3+ {[%clk 0:00:35.2]} 42. fxg3 {[%clk 0:02:43.6]} 42... h5 {[%clk 0:00:31.6]}
43. Ra6+ {[%clk 0:02:43]} 43... Kf5 {[%clk 0:00:30.3]} 44. Ra5 {[%clk
0:02:42.9]} 44... Ke4 {[%clk 0:00:28.4]} 45. Ra4+ {[%clk 0:02:41.4]} 45... Kf3
{[%clk 0:00:26.2]} 46. Ra3+ {[%clk 0:02:39.4]} 46... Ke4 {[%clk 0:00:25.1]} 47.
Ra1 {[%clk 0:02:39.1]} 47... Kf3 {[%clk 0:00:24.4]} 48. Rf1+ {[%clk 0:02:38.5]}
48... Ke4 {[%clk 0:00:23.6]} 49. Rf8 {[%clk 0:02:38.4]} 49... Ke3 {[%clk
0:00:19.1]} 50. Rf5 {[%clk 0:02:19.8]} 50... Bf3 {[%clk 0:00:14.2]} 51. Rxg5
{[%clk 0:02:17.7]} 51... h4 {[%clk 0:00:12.2]} 52. gxh4 {[%clk 0:02:16.1]} 52...
Kf4 {[%clk 0:00:11.3]} 53. Rg3 {[%clk 0:02:15.4]} 53... Bh5 {[%clk 0:00:09.1]}
54. Rg5 {[%clk 0:02:12.3]} 54... Be2 {[%clk 0:00:08]} 55. Rg8 {[%clk 0:02:11.3]}
55... Kf5 {[%clk 0:00:07]} 56. Rf8+ {[%clk 0:02:10.4]} 56... Kg6 {[%clk
0:00:06.1]} 57. Kg3 {[%clk 0:02:08.7]} 57... Kg7 {[%clk 0:00:05.7]} 58. Re8
{[%clk 0:02:07.2]} 58... Bh5 {[%clk 0:00:03.9]} 59. Re3 {[%clk 0:02:07.1]} 59...
Kg6 {[%clk 0:00:03]} 60. Rf3 {[%clk 0:02:06.4]} 60... Bxf3 {[%clk 0:00:01.5]}
61. Kxf3 {[%clk 0:02:06.3]} 61... Kh5 {[%clk 0:00:00.9]} 62. Kg3 {[%clk
0:02:06.2]} 62... Kh6 {[%clk 0:00:00.3]} 63. Kg4 {[%clk 0:02:06.1]} 1-0

[Event "Live Chess"]
[Site "Chess.com"]
[Date "2023.05.20"]
[Round "-"]
[White "alexlines8"]
[Black "killershark69420"]
[Result "1-0"]
[WhiteElo "1270"]
[BlackElo "315"]
[TimeControl "300"]
[EndTime "9:13:19 PDT"]
[Termination "alexlines8 won by checkmate"]

1. e4 {[%clk 0:04:58.5]} 1... e5 {[%clk 0:04:58.6]} 2. Nc3 {[%clk 0:04:57.5]}
2... Nc6 {[%clk 0:04:39.2]} 3. Bc4 {[%clk 0:04:55.3]} 3... Nf6 {[%clk
0:03:33.8]} 4. d3 {[%clk 0:04:49.7]} 4... d6 {[%clk 0:03:22.2]} 5. Nf3 {[%clk
0:04:43.7]} 5... Bg4 {[%clk 0:03:16]} 6. h3 {[%clk 0:04:41.9]} 6... Bxf3 {[%clk
0:03:14.2]} 7. Qxf3 {[%clk 0:04:40.9]} 7... Nd4 {[%clk 0:03:03.5]} 8. Qd1 {[%clk
0:04:36.1]} 8... c6 {[%clk 0:02:51.5]} 9. Be3 {[%clk 0:04:26.7]} 9... d5 {[%clk
0:02:40.8]} 10. exd5 {[%clk 0:04:12.1]} 10... cxd5 {[%clk 0:02:35.7]} 11. Bb3
{[%clk 0:04:04.2]} 11... Bb4 {[%clk 0:02:26.4]} 12. a3 {[%clk 0:03:52.1]} 12...
Bxc3+ {[%clk 0:02:24.6]} 13. bxc3 {[%clk 0:03:50.4]} 13... Nxb3 {[%clk
0:02:20.7]} 14. cxb3 {[%clk 0:03:50.3]} 14... e4 {[%clk 0:02:18.2]} 15. d4
{[%clk 0:03:44.6]} 15... Qa5 {[%clk 0:02:10.5]} 16. Qc2 {[%clk 0:03:39.9]} 16...
Rc8 {[%clk 0:02:06.7]} 17. Bd2 {[%clk 0:03:33.4]} 17... O-O {[%clk 0:01:57.7]}
18. O-O {[%clk 0:03:31.7]} 18... Rc7 {[%clk 0:01:54.2]} 19. c4 {[%clk
0:03:22.2]} 19... dxc4 {[%clk 0:01:50.1]} 20. Bxa5 {[%clk 0:03:20.6]} 20... cxb3
{[%clk 0:01:45.1]} 21. Qxc7 {[%clk 0:03:17.6]} 21... b2 {[%clk 0:01:35.8]} 22.
Rab1 {[%clk 0:03:10.1]} 22... Re8 {[%clk 0:01:15.5]} 23. Qxb7 {[%clk 0:03:01.5]}
23... e3 {[%clk 0:01:11.4]} 24. fxe3 {[%clk 0:02:55.5]} 24... Rxe3 {[%clk
0:01:10.2]} 25. Rxb2 {[%clk 0:02:48]} 25... Rxa3 {[%clk 0:01:08.7]} 26. Qb8+
{[%clk 0:02:45.1]} 26... Ne8 {[%clk 0:01:02.1]} 27. Qxe8# {[%clk 0:02:43]} 1-0